Cogmind - Beta 14 @@@ ROGUE MODE // 2025.01.07 @ 11:37:37 Player: Tereza Result: Smashed by cave-in Performance ------------- Evolutions (1) 500 Regions Visited (5) 1000 Robots Destroyed (71) 355 Value Destroyed (1721) 1721 Prototype IDs (25) 500 Alien Tech Used (0) 0 Bonus (350) 350 TOTAL SCORE: 4426 Bonus ------- Follower Combat Kills 50 Aligned with FarCom 300 Cogmind --------- Core Integrity 0/400 Matter 238/300 Energy 265/265 System Corruption 3% Temperature Cool (0) Movement Treading (240) Ox1 Location -9/Exiles Parts ------- > --- POWER (1) -------- Reinforced Ion Engine > --- PROPULSION (2) --- Light Treads Light Treads > --- UTILITY (4) ------ High-capacity Storage Unit Targeting Computer Improved Targeting Computer Trap Extractor (0/4) > --- WEAPON (2) ------- Improved Assault Rifle Rocket Launcher > --- INVENTORY (20) --- Reinforced Ion Engine Light Treads Light Treads Light Treads Light Treads Compact Wheel High-capacity Matter Pod (200) Hacking Suite System Shield System Shield Trap Extractor (3/4 Blade) Trap Extractor (0/4) Advanced Beam Cannon Shotgun Improved Assault Rifle Mini Grenade Launcher Datajack Field Lobotomy Kit (5) Mining Laser Peak State ------------ > --- POWER ------------ Reinforced Ion Engine > --- PROPULSION ------- Light Treads Light Treads > --- UTILITY ---------- High-capacity Storage Unit Targeting Computer Improved Targeting Computer Trap Extractor > --- WEAPON ----------- Improved Assault Rifle Improved Assault Rifle > --- INVENTORY -------- Reinforced Ion Engine Light Treads Light Treads Light Treads Light Treads Compact Wheel High-capacity Matter Pod Hacking Suite System Shield System Shield Trap Extractor Trap Extractor Advanced Beam Cannon Shotgun Rocket Launcher Mini Grenade Launcher Datajack Field Lobotomy Kit Mining Laser EMP Trap [Rating: 20] Favorites ----------- Power Light Nuclear Core Engine Reinforced Ion Engine Power Core Light Nuclear Core Propulsion Light Treads Treads Light Treads Utility Hardened Light Armor Plating Device Terrain Scanner Storage High-capacity Storage Unit Processor Targeting Computer Protection Hardened Light Armor Plating Weapon Shotgun Energy Gun EM Pulse Gun Energy Cannon Advanced Beam Cannon Ballistic Gun Shotgun Launcher Rocket Launcher Special Weapon Mining Laser Special Melee Weapon Datajack Build | -11 -10 -10 -9 -9 -9 ------- Run | Yrd Mat Min Mat Min Exi Slots Evolved 2 | . . . 2 . . Power . | . . . . . . Propulsion . | . . . . . . Utility 2 | . . . 2 . . Weapon . | . . . . . . Parts Attached 66 | 6 26 . 30 2 2 Power 6 | 1 2 . 3 . . Engine 4 | 1 1 . 2 . . Core 2 | . 1 . 1 . . Reactor . | . . . . . . Propulsion 11 | 2 1 . 8 . . Treads 11 | 2 1 . 8 . . Leg . | . . . . . . Wheel . | . . . . . . Hover . | . . . . . . Flight . | . . . . . . Utility 19 | 1 9 . 7 1 1 Device 7 | . 4 . 1 1 1 Storage 2 | 1 1 . . . . Processor 3 | . . . 3 . . Hackware . | . . . . . . Protection 7 | . 4 . 3 . . Artifact . | . . . . . . Weapon 30 | 2 14 . 12 1 1 Energy Gun 1 | 1 . . . . . Energy Cannon 2 | . 2 . . . . Ballistic Gun 18 | 1 7 . 9 1 . Ballistic Cannon . | . . . . . . Launcher 3 | . 1 . 1 . 1 Special Weapon 3 | . 1 . 2 . . Impact Weapon . | . . . . . . Slashing Weapon . | . . . . . . Piercing Weapon . | . . . . . . Special Melee Weapon 3 | . 3 . . . . Unidentified Prototypes 2 | . 1 . 1 . . Parts Lost 8 | . 1 . 6 1 . Power 3 | . 1 . 2 . . Propulsion 1 | . . . 1 . . Utility 3 | . . . 3 . . Weapon 1 | . . . . 1 . Highest Loss Streak 2 | . 1 . 2 1 . To Critical Strikes 1 | . . . 1 . . Average Slot Usage (%) 98 | . 98 100 97 100 100 Engine 4 | . 4 . 2 11 11 Core 7 | . 9 14 7 . . Treads 24 | . 27 28 21 22 22 Device 5 | . 1 . 6 10 11 Storage 12 | . 14 14 11 11 11 Processor 6 | . . . 6 22 22 Protection 12 | . 11 14 17 . . Ballistic Gun 23 | . 25 28 21 22 20 Peak Build Rating 20 | 6 16 14 19 19 20 Average Rating 15 | 4 12 14 17 18 19 On Entrance 11 | . 6 14 14 18 19 Naked Turns . | . . . . . . Heaviest Build 62 | 11 57 54 62 61 59 Greatest Support 40 | 40 40 40 40 40 40 Greatest Overweight (x) 2 | . 1 1 2 1 1 Average Overweight (x) . | . . 1 1 1 1 Largest Inventory Capacity 20 | 8 20 20 20 20 20 Average Capacity 19 | 6 17 20 20 20 20 Most Carried 20 | 4 20 20 20 20 20 Average Carried 18 | 2 16 20 19 19 19 Final Capacity 20 | 8 20 20 20 20 20 Final Carried 20 | 4 20 20 20 20 19 Class Distribution -------------------- 75% | Trapper-Mutant 24% | Mutant Dominant Class ---------------- Mutant | -10/Materials Trapper-Mutant | -10/Mines Trapper-Mutant | -9/Materials Trapper-Mutant | -9/Mines Trapper-Mutant | -9/Exiles Resources | -11 -10 -10 -9 -9 -9 ----------- Run | Yrd Mat Min Mat Min Exi Matter Collected 2033 | 221 829 . 948 35 . Remotely . | . . . . . . Salvage Created 2176 | . 807 . 1343 . 26 Parts 150 | . 62 . 88 . . Haulers Intercepted 5 | . 2 . 3 . . Recyclers Shooed . | . . . . . . Parts Field Recycled . | . . . . . . Retrieved Matter . | . . . . . . Parts Self-Destructed . | . . . . . . Prevented . | . . . . . . Kills | -11 -10 -10 -9 -9 -9 ------- Run | Yrd Mat Min Mat Min Exi Combat Hostiles Destroyed 55 | . 21 . 28 . 6 Guns 47 | . 20 . 26 . 1 Cannons 1 | . 1 . . . . AOE 7 | . . . 2 . 5 Classes Destroyed 11 | . 8 . 2 . 1 Worker 4 | . 2 . 2 . . Builder 3 | . 2 . 1 . . Tunneler 2 | . 2 . . . . Hauler 5 | . 2 . 3 . . Operator 2 | . 2 . . . . Watcher 6 | . 3 . 3 . . Swarmer 12 | . 9 . 3 . . Grunt 29 | . 12 . 17 . . Duelist 1 | . . . 1 . . Sentry 7 | . . . 7 . . Assembled 6 | . . . . . 6 Best Kill Streak 6 | . 6 . 4 . 6 Combat Bots Only 6 | . 4 . 3 . 6 Max Kills in Single Turn 3 | . 2 . 2 . 3 Gunslinging 1 | . 1 . . . . Exploded 3 | . . . 2 . 3 Melee . | . . . . . . Uniques/NPCs Destroyed . | . . . . . . Combat | -11 -10 -10 -9 -9 -9 -------- Run | Yrd Mat Min Mat Min Exi Hostile Shots Fired 309 | . 102 . 180 2 25 Missed 81 | . 21 . 54 1 5 Damage Taken 3347 | . 889 . 1807 62 589 Core 517 | . 114 . 189 . 214 Absorbed by Shields . | . . . . . . Regen/Repaired (Parts) 378 | . 131 . 247 . . Core Remaining (%) 77 | 100 . 54 . . . Volleys Fired 193 | . 77 . 113 . 3 Largest 2 | . 2 . 2 . 2 Hottest 123 | . 123 . 100 . 56 Shots Fired 364 | . 144 . 214 . 6 Gun 342 | . 129 . 210 . 3 Cannon 12 | . 12 . . . . Launcher 5 | . 1 . 1 . 3 Special 5 | . 2 . 3 . . Kinetic 341 | . 128 . 210 . 3 Thermal 17 | . 14 . 3 . . Explosive 5 | . 1 . 1 . 3 Electromagnetic 1 | . 1 . . . . Robot Hit Streak 11 | . 11 . 7 . 4 Robot Miss Streak 5 | . 5 . 4 . 1 Penetration Max . | . . . . . . Secondary Targets 4 | . 2 . 2 . . Max Gunslinging Chain 1 | . 1 . 1 . . Shots Hit Robots 239 | . 96 . 139 . 4 Core Hits 122 | . 54 . 58 . 10 Critical Kills 1 | . . . 1 . . Critical Parts Destroyed . | . . . . . . Critical Strikes 1 | . . . 1 . . Destroy 1 | . . . 1 . . Melee Attacks 2 | . 2 . . . . Impact . | . . . . . . Slashing . | . . . . . . Piercing . | . . . . . . Sneak Attacks 2 | . 2 . . . . Combat Hostiles . | . . . . . . Follow-up Attacks . | . . . . . . Damage Inflicted 3937 | . 1362 . 2287 . 288 Guns 3356 | . 1179 . 2145 . 32 Cannons 101 | . 101 . . . . Explosions 480 | . 82 . 142 . 256 Melee . | . . . . . . Ramming . | . . . . . . Kinetic 3338 | . 1161 . 2145 . 32 Thermal 126 | . 126 . . . . Explosive 455 | . 57 . 142 . 256 Electromagnetic 18 | . 18 . . . . Impact . | . . . . . . Slashing . | . . . . . . Piercing . | . . . . . . Highest Corruption 3 | . . . . . 3 Average Corruption 3 | . . . . . 3 Corruption Purged . | . . . . . . Corruption Blocked . | . . . . . . Overload Shots . | . . . . . . Overflow Damage 25 | . . . 18 . 7 Projectiles . | . . . . . . Explosions 25 | . . . 18 . 7 Melee . | . . . . . . Knockbacks . | . . . . . . Impact . | . . . . . . Kinetic . | . . . . . . Secondary . | . . . . . . Self-Inflicted Damage 56 | . 26 . . . 30 Shots 2 | . 1 . . . 1 Rammed . | . . . . . . Targets Rammed . | . . . . . . Kicked . | . . . . . . Crushed . | . . . . . . Highest Temperature 298 | . 298 . 120 . . Average Temperature 54 | . 67 . 45 . . Received Heat Transfer 1002 | . 321 . 675 6 . Effects 1 | . 1 . . . . Energy Bleed 1 | . 1 . . . . Siege Activations . | . . . . . . Robots Corrupted . | . . . . . . Combat Hostiles . | . . . . . . Parts Fried . | . . . . . . Impact Corruptions . | . . . . . . Robots Melted . | . . . . . . Combat Hostiles . | . . . . . . Parts Melted . | . . . . . . Heat Transferred 235 | . 235 . . . . Parts Sabotaged . | . . . . . . Parts Stolen . | . . . . . . Parts Stripped . | . . . . . . Power Chain Reactions 1 | . 1 . . . . Alert | -11 -10 -10 -9 -9 -9 ------- Run | Yrd Mat Min Mat Min Exi Peak Influence 381 | . 197 34 381 142 . Initial 114 | . . 34 13 114 . Average 126 | . 87 34 192 47 . Maximum Alert Level 1 | . . . 1 . . Low Security (%) 76 | 100 100 100 46 100 . Level 1 23 | . . . 53 . . Level 2 . | . . . . . . Level 3 . | . . . . . . Level 4 . | . . . . . . Level 5 . | . . . . . . High Security . | . . . . . . Max Security . | . . . . . . Squads Dispatched 6 | . 4 . 2 . . Investigation 3 | . 2 . 1 . . Extermination . | . . . . . . Reinforcement 3 | . 2 . 1 . . Assault . | . . . . . . Garrison . | . . . . . . Intercept . | . . . . . . Searches Triggered . | . . . . . . Construction Impeded . | . . . . . . Haulers Reinforced . | . . . . . . Active Scanning Responses . | . . . . . . Cargo Convoy Interrupts . | . . . . . . Stealth | -11 -10 -10 -9 -9 -9 --------- Run | Yrd Mat Min Mat Min Exi Distress Signals 6 | . . . 6 . . Communications Jammed . | . . . . . . Distress Signals . | . . . . . . Times Spotted 82 | . 29 . 42 3 8 Peak Tracking Total 9 | . 4 . 6 3 9 Tactical Retreats 4 | . . . 3 1 . Traps | -11 -10 -10 -9 -9 -9 ------- Run | Yrd Mat Min Mat Min Exi Traps Triggered 4 | . 3 . . 1 . Indirectly . | . . . . . . Trap Hack Attempts 110 | . 110 . . . . Triggered 1 | . 1 . . . . Disarmed 3 | . 3 . . . . Reprogrammed 9 | . 9 . . . . Reused 1 | . . . . . 1 Traps Extracted 13 | . 9 . . 4 . Installed 5 | . . . . . 5 Triggered . | . . . . . . Most Traps Carried 12 | . 9 9 9 12 12 Machines | -11 -10 -10 -9 -9 -9 ---------- Run | Yrd Mat Min Mat Min Exi Machines Disabled 4 | . 1 . 2 . 1 Max in Single Turn 1 | . 1 . 1 . 1 Machines Repaired . | . . . . . . Machines Dismantled . | . . . . . . Machines Sabotaged . | . . . . . . Overloaded Fab Kills . | . . . . . . Hacking | -11 -10 -10 -9 -9 -9 --------- Run | Yrd Mat Min Mat Min Exi Machines Accessed 22 | . 9 . 12 . 1 Terminals 14 | . 6 . 8 . . Fabricators . | . . . . . . Repair Stations 3 | . 1 . 2 . . Recycling Units 4 | . 2 . 2 . . Scanalyzers . | . . . . . . Garrison Access . | . . . . . . Total Hacks 51 | . 22 . 28 . 1 Successful 25 | . 8 . 16 . 1 Failed 26 | . 14 . 12 . . Catastrophic 4 | . 1 . 3 . . Database Lockouts . | . . . . . . Manual 17 | . 12 . 4 . 1 Terminals 37 | . 16 . 21 . . Fabricators . | . . . . . . Repair Stations 7 | . 3 . 4 . . Recycling Units 6 | . 3 . 3 . . Scanalyzers . | . . . . . . Garrison Access . | . . . . . . Terminal Hacks 14 | . 4 . 9 . 1 Record 1 | . . . 1 . . Robot Analysis 2 | . 1 . 1 . . Alert Level 2 | . . . 2 . . Unreport Threat 1 | . . . 1 . . Locate Traps 3 | . 3 . . . . Hauler Manifests 2 | . . . 2 . . Zone Layout 2 | . . . 2 . . Derelict Proto ID Bank 1 | . . . . . 1 Fabricator Hacks . | . . . . . . Repair Station Hacks 6 | . 2 . 4 . . Scan Component 3 | . 1 . 2 . . Repair 3 | . 1 . 2 . . Recycling Unit Hacks 4 | . 2 . 2 . . Report Inventory 4 | . 2 . 2 . . Scanalyzer . | . . . . . . Garrison Access Hacks . | . . . . . . Unauthorized Hacks 1 | . . . 1 . . Terminals 1 | . . . 1 . . Search 1 | . . . 1 . . Fabricators . | . . . . . . Repair Stations . | . . . . . . Recycling Units . | . . . . . . Scanalyzers . | . . . . . . Garrison Access . | . . . . . . Data Cores Recovered . | . . . . . . Used . | . . . . . . Hacking Detections 14 | . 7 . 7 . . Full Trace Events 3 | . 3 . . . . Feedback Events . | . . . . . . Feedback Blocked . | . . . . . . Robot Schematics Acquired . | . . . . . . Robots Built . | . . . . . . Authchips . | . . . . . . Time . | . . . . . . Total Robot Build Rating . | . . . . . . Part Schematics Acquired . | . . . . . . Parts Built . | . . . . . . Authchips . | . . . . . . Time . | . . . . . . Total Part Build Rating . | . . . . . . Parts Repaired 3 | . 1 . 2 . . Time 103 | . 26 . 77 . . Parts Recycled . | . . . . . . Recycled Matter . | . . . . . . Retrieved Matter . | . . . . . . Retrieved Components . | . . . . . . Parts Scanalyzed . | . . . . . . Part Schematics Acquired . | . . . . . . Parts Damaged . | . . . . . . Bothacking | -11 -10 -10 -9 -9 -9 ------------ Run | Yrd Mat Min Mat Min Exi Used RIF Installer . | . . . . . . Robots Hacked . | . . . . . . Non-combat . | . . . . . . Combat . | . . . . . . Robot Hacks Applied . | . . . . . . Relay Couplers Released . | . . . . . . Fabnet Peak Effective % . | . . . . . . Robots Rewired . | . . . . . . Allies Hacked . | . . . . . . Hacks Repelled . | . . . . . . Allies | -11 -10 -10 -9 -9 -9 -------- Run | Yrd Mat Min Mat Min Exi Total Allies 2 | . . . . 2 . Largest Group 2 | . . . . 2 . Highest-Rated Group 43 | . . . . 43 . Highest-Rated Ally 31 | . . . . 31 . Total Orders . | . . . . . . Ally Attacks 10 | . . . . 10 . Total Damage 172 | . . . . 172 . Kills 2 | . . . . 2 . Allies Corrupted . | . . . . . . Allies Melted . | . . . . . . Intel | -11 -10 -10 -9 -9 -9 ------- Run | Yrd Mat Min Mat Min Exi Robot Analysis Total 2 | . 1 . 1 . . Derelict Logs Recovered 2 | . . 1 . 1 . Drone Launches . | . . . . . . Drone Recoveries . | . . . . . . Exploration | -11 -10 -10 -9 -9 -9 ------------- Run | Yrd Mat Min Mat Min Exi Turns Passed 7477 | 76 2752 164 3129 964 392 Spaces Moved 2782 | 43 1024 68 1094 401 152 Core 5 | 5 . . . . . Treads 2777 | 38 1024 68 1094 401 152 Legs . | . . . . . . Wheels . | . . . . . . Hover . | . . . . . . Flight . | . . . . . . Fastest Speed 50 | 50 160 240 240 240 240 Average Speed 231 | 147 220 240 240 240 240 Slowest Speed 320 | 160 240 240 320 240 240 Overloaded Moves . | . . . . . . Propulsion Burnouts . | . . . . . . Robots Hopped . | . . . . . . Cave-ins Triggered 1 | . . . . . 1 Exploration Rate (%) 49 | 4 97 14 82 60 40 Regions Visited 5 Branch Regions 3 Pre-discovered Areas 2 | . . 1 . 1 . Known Exits Taken . | . . . . . . Unknown Exits Taken 5 | 1 1 1 1 1 . Scrap Searched 1 | . . . . 1 . Spaces Dug 5 | . 2 . 3 . . Terrain Destroyed 32 | . 13 . 9 . 10 Melee . | . . . . . . Projectile 5 | . 2 . 3 . . AOE 27 | . 11 . 6 . 10 Terrain Rammed . | . . . . . . Walls Destroyed . | . . . . . . Machines Disabled . | . . . . . . Actions | -11 -10 -10 -9 -9 -9 --------- Run | Yrd Mat Min Mat Min Exi Total 3468 | 53 1375 71 1389 405 175 Wait 228 | 1 104 2 115 . 6 Move 2777 | 42 1023 67 1093 400 152 Hop . | . . . . . . Pick Up 46 | 4 21 1 15 2 3 Fast Attach 20 | 6 6 . 8 . . Attach 5 | . . . 4 1 . Detach 2 | . 2 . . . . Swap 41 | . 20 . 18 1 2 Drop 39 | . 10 1 23 1 4 Fire 193 | . 77 . 113 . 3 Melee 2 | . 2 . . . . Ram . | . . . . . . Kick . | . . . . . . Crush . | . . . . . . Escape Stasis . | . . . . . . Rewire . | . . . . . . Trap 115 | . 110 . . . 5 Miscellaneous . | . . . . . . Route ------- -11/Scrapyard -10/Materials (discovered 4 exits: *Mat x3 / [*Min]) -10/Mines -9/Materials (discovered 4 exits: [*Mat x2] / [*Min x2]) -9/Mines (discovered 2 exits: [*Mat] / *Exi) -9/Exiles History --------- Turn | Location | Event 17 | -11/Scrapyard | Discovered new exit (range 15) 77 | -11/Scrapyard | Entered Materials 309 | -10/Materials | Build established: Mutant 332 | -10/Materials | Discovered new exit (range 14) 1282 | -10/Materials | Discovered new exit (range 16) 1789 | -10/Materials | Discovered new exit (range 10) 2092 | -10/Materials | Build established: Trapper-Mutant 2171 | -10/Materials | Repaired Lgt. Treads 2644 | -10/Materials | Discovered new exit (range 15) 2829 | -10/Materials | Entered Mines 2861 | -10/Mines | Met a Derelict bent on vengeance 2956 | -10/Mines | Discovered new exit (range 15) 2958 | -10/Mines | Received a Rocket Launcher from a helpful Derelict 2993 | -10/Mines | Entered Materials 2993 | -9/Materials | Evolved 2 slots: Utility x2 3473 | -9/Materials | Repaired Lgt. Treads 3719 | -9/Materials | Discovered new exit (range 8) 3955 | -9/Materials | Discovered new exit (range 10) 4971 | -9/Materials | Discovered new exit (range 15) 5847 | -9/Materials | Discovered new exit (range 16) 5929 | -9/Materials | Repaired Imp. Assault Rifle 6122 | -9/Materials | Entered Mines 6353 | -9/Mines | Discovered new exit (range 7) 6479 | -9/Mines | Learned location of Zion (-7) 7074 | -9/Mines | Deemed a non-threat by the Exiles lab entrance 7077 | -9/Mines | Discovered new exit (range 5) 7086 | -9/Mines | Entered Exiles 7146 | -9/Exiles | Met 8R-AWN 7187 | -9/Exiles | Met EX-HEX 7250 | -9/Exiles | Met EX-BIN 7278 | -9/Exiles | Aligned with FarCom system 7281 | -9/Exiles | Given EX-Vault access code 7338 | -9/Exiles | Opened EX-Vault 7349 | -9/Exiles | Found Field Lobotomy Kit 7402 | -9/Exiles | Warned about trapping Exiles lab 7407 | -9/Exiles | Attacked by the Exiles 7427 | -9/Exiles | Core integrity fell below 50% 7462 | -9/Exiles | Core integrity fell below 20% 7479 | -9/Exiles | Crushed by falling debris 7479 | -9/Exiles | Smashed by cave-in Last Messages --------------- 07434_ Destroyed Asb. F-torch. 07434_ as-87059 destroyed. 07434_ as-24925 destroyed. 07437_ as-50843 destroyed. 07437_ as-64536 destroyed. 07437_ as-12484 destroyed. 07437_ Machine disabled. 07450_ Penetrated by HV Slug. 07450_ HV Slug penetrates Wall. 07454_ Penetrated by HV Slug. 07459_ Trap Extractor dropped Shock Trap. 07459_ Installed Shock Trap. 07460_ Trap Extractor dropped Shock Trap. 07460_ The unstable cave ceiling collapses. 07461_ Trap Extractor dropped Shock Trap. 07461_ Penetrated by HV Slug. 07461_ HV Slug penetrates Wall. 07462_ Trap Extractor dropped Shock Trap. 07479_ The unstable cave ceiling collapses. 07479_ Crushed by falling debris. Map ----- +----------------------------------------------------+ | | | | | | | | | | | | | | | | | | | | | | | ??????????????????####?####??????????????????????? | | ??????????????????# #! #??????????????????????? | | ??????????????????# X #??????????????????????? | | ??????????????????#! ! #??????????????????????? | | ??????????????????# #??????????????????????? | | ??????????????????## ##??????????????????????? | | ??????????????????#X #???????????????????????? | | ??????????????????## #???????????????????????? | | ???????????????????# #???????????????????????? | | ???????????????????# #########???????????????? | | ??????????????????## ##""""""#???????????????? | | ?????????????????## """#???????????????? | | ?????????????????# X""#???????????????? | | ?????????????????# ; """#???????????????? | | ?????????????##### @; """""#???????????????? | | ????????????""""""# % &&#;#######???????????????? | | ????????????"""" # ^ #?????????????????????? | | ???????????#""X" & #?????????????????????? | | ???????????#" #?????????????????????? | | ???????????#" ## ##?????????????????????? | | ???????????#""""""?# ###########?????????????? | | ???????????##"###??# #?#"""""""#?????????????? | | ???????????????????# #?#"""""""#?????????????? | | ??????????????????? ?#"""""""#?????????????? | | ??????????????????# ##"" """"#?????????????? | | ??????????????????# """"#?????????????? | | ??????????????????#" %% """#?????????????? | | ?????????????????? """#?????????????? | | ??????????????????# """#?????????????? | | ??????????????????# """#?????????????? | | ??????????????????#" """#?????????????? | | ??????????????????## """"?????????????? | | ???????????????????# """#?????????????? | | ???????????????????#" "X" """"?????????????? | | ???????????????????#" """ #?????????????? | | ???????????????????#" """""""""#?????????????? | | ??????????????????##" ###########?????????????? | | ?????????????????##"" #???????????????????????? | | ????????????????##"" #???????????????????????? | +----------------------------------------------------+ Best States ------------- Heat Dissipation 35 Energy Generation 14 Energy Capacity 265 Matter Stores 300 Matter Capacity 300 Sight Range 16 Terrain Scan Range 14 Terrain Scan Density 10 Armor Coverage 300 Evasion (%) 40 Targeting Accuracy 11 Recoil Reduction 2 Trap Extractor Capacity 4 Item Schematics ----------------- None Robot Schematics ------------------ None Fabricated ------------ Nothing Alien Tech Used ----------------- None Achievements -------------- None Challenges ------------ None Game ------ Seed PhasingAccelerationTendrils Manual? 0 Play Time 00:31:23 Cumulative 154.9 hours Start 2025.01.07 @ 10:55:49 End 2025.01.07 @ 11:37:37 Sessions 1 Manual Loads 0 Difficulty Rogue Special Mode None Game No. 192 Rogue 192 Adventurer 0 Explorer 0 Win Type - Total 3 Types 3/0/0/0/0/0/0/0/0 Lore% 68 Gallery% 59 Achievement% 51 Wizard Run 0 Options --------- Layout 1 ASCII 0 Keyboard 1 Movement Numpad Keybinds 0 Fullscreen 1 Font 24/Smallcaps Map View 50x35 Zoom Use 0% Tactical HUD 1 Map Filters NONE Filters NONE Steam 1 RUN: d2176496-2c1f-46ed-ad2c-d9c62711efaa